{"text_format":"3","workbook":"xlsx","n_sheets":2,"sheets":["Podaci o  kandidatu","Podaci o poređenju kandidata"],"not_rendered":{"defined_names":4},"read":"whole","date_system":"1900"}

{"sheet":"Podaci o  kandidatu","index":0,"n_rows":2,"n_cols":13,"rows_kept":2,"merged":[[0,0,0,3]]}
["Podaci o kandidatu"]
["Prezime","Ime","Srednje slovo","Posao za koji se prijavljuje","Status prijave","Poštanska adresa","Kućni telefon","Drugi telefon","E-adresa","Izvor prijave","Datum prispeća radne biografije","Ime menadžera za ljudske resurse","Beleške menadžera za ljudske resurse"]

{"sheet":"Podaci o poređenju kandidata","index":1,"n_rows":59,"n_cols":12,"rows_kept":59,"merged":[[0,0,0,3]]}
["Podaci o poređenju kandidata"]
["Prezime","Ime","Srednje slovo","Posao za koji se prijavljuje","Trenutni poslodavac","Trenutna pozicija","Obrazovanje","Trenutni status vize","Godine iskustva na sličnim poslovima","Važne veštine ili iskustvo","Ime menadžera za ljudske resurse","Beleške menadžera za ljudske resurse"]
[{"$f":"IF('Podaci o  kandidatu'!A3=\"\",\"\",'Podaci o  kandidatu'!A3)","v":""},{"$f":"IF('Podaci o  kandidatu'!B3=\"\",\"\",'Podaci o  kandidatu'!B3)","v":""},{"$f":"IF('Podaci o  kandidatu'!C3=\"\",\"\",'Podaci o  kandidatu'!C3)","v":""},{"$f":"IF('Podaci o  kandidatu'!D3=\"\",\"\",'Podaci o  kandidatu'!D3)","v":""},{"$nulls":6},{"$f":"IF('Podaci o  kandidatu'!L3=\"\",\"\",'Podaci o  kandidatu'!L3)","v":""},{"$f":"IF('Podaci o  kandidatu'!M3=\"\",\"\",'Podaci o  kandidatu'!M3)","v":""}]
[{"$f":"IF('Podaci o  kandidatu'!A4=\"\",\"\",'Podaci o  kandidatu'!A4)","v":""},{"$f":"IF('Podaci o  kandidatu'!B4=\"\",\"\",'Podaci o  kandidatu'!B4)","v":""},{"$f":"IF('Podaci o  kandidatu'!C4=\"\",\"\",'Podaci o  kandidatu'!C4)","v":""},{"$f":"IF('Podaci o  kandidatu'!D4=\"\",\"\",'Podaci o  kandidatu'!D4)","v":""},{"$nulls":6},{"$f":"IF('Podaci o  kandidatu'!L4=\"\",\"\",'Podaci o  kandidatu'!L4)","v":""},{"$f":"IF('Podaci o  kandidatu'!M4=\"\",\"\",'Podaci o  kandidatu'!M4)","v":""}]
[{"$f":"IF('Podaci o  kandidatu'!A5=\"\",\"\",'Podaci o  kandidatu'!A5)","v":""},{"$f":"IF('Podaci o  kandidatu'!B5=\"\",\"\",'Podaci o  kandidatu'!B5)","v":""},{"$f":"IF('Podaci o  kandidatu'!C5=\"\",\"\",'Podaci o  kandidatu'!C5)","v":""},{"$f":"IF('Podaci o  kandidatu'!D5=\"\",\"\",'Podaci o  kandidatu'!D5)","v":""},{"$nulls":6},{"$f":"IF('Podaci o  kandidatu'!L5=\"\",\"\",'Podaci o  kandidatu'!L5)","v":""},{"$f":"IF('Podaci o  kandidatu'!M5=\"\",\"\",'Podaci o  kandidatu'!M5)","v":""}]
[{"$f":"IF('Podaci o  kandidatu'!A6=\"\",\"\",'Podaci o  kandidatu'!A6)","v":""},{"$f":"IF('Podaci o  kandidatu'!B6=\"\",\"\",'Podaci o  kandidatu'!B6)","v":""},{"$f":"IF('Podaci o  kandidatu'!C6=\"\",\"\",'Podaci o  kandidatu'!C6)","v":""},{"$f":"IF('Podaci o  kandidatu'!D6=\"\",\"\",'Podaci o  kandidatu'!D6)","v":""},{"$nulls":6},{"$f":"IF('Podaci o  kandidatu'!L6=\"\",\"\",'Podaci o  kandidatu'!L6)","v":""},{"$f":"IF('Podaci o  kandidatu'!M6=\"\",\"\",'Podaci o  kandidatu'!M6)","v":""}]
[{"$f":"IF('Podaci o  kandidatu'!A7=\"\",\"\",'Podaci o  kandidatu'!A7)","v":""},{"$f":"IF('Podaci o  kandidatu'!B7=\"\",\"\",'Podaci o  kandidatu'!B7)","v":""},{"$f":"IF('Podaci o  kandidatu'!C7=\"\",\"\",'Podaci o  kandidatu'!C7)","v":""},{"$f":"IF('Podaci o  kandidatu'!D7=\"\",\"\",'Podaci o  kandidatu'!D7)","v":""},{"$nulls":6},{"$f":"IF('Podaci o  kandidatu'!L7=\"\",\"\",'Podaci o  kandidatu'!L7)","v":""},{"$f":"IF('Podaci o  kandidatu'!M7=\"\",\"\",'Podaci o  kandidatu'!M7)","v":""}]
[{"$f":"IF('Podaci o  kandidatu'!A8=\"\",\"\",'Podaci o  kandidatu'!A8)","v":""},{"$f":"IF('Podaci o  kandidatu'!B8=\"\",\"\",'Podaci o  kandidatu'!B8)","v":""},{"$f":"IF('Podaci o  kandidatu'!C8=\"\",\"\",'Podaci o  kandidatu'!C8)","v":""},{"$f":"IF('Podaci o  kandidatu'!D8=\"\",\"\",'Podaci o  kandidatu'!D8)","v":""},{"$nulls":6},{"$f":"IF('Podaci o  kandidatu'!L8=\"\",\"\",'Podaci o  kandidatu'!L8)","v":""},{"$f":"IF('Podaci o  kandidatu'!M8=\"\",\"\",'Podaci o  kandidatu'!M8)","v":""}]
[{"$f":"IF('Podaci o  kandidatu'!A9=\"\",\"\",'Podaci o  kandidatu'!A9)","v":""},{"$f":"IF('Podaci o  kandidatu'!B9=\"\",\"\",'Podaci o  kandidatu'!B9)","v":""},{"$f":"IF('Podaci o  kandidatu'!C9=\"\",\"\",'Podaci o  kandidatu'!C9)","v":""},{"$f":"IF('Podaci o  kandidatu'!D9=\"\",\"\",'Podaci o  kandidatu'!D9)","v":""},{"$nulls":6},{"$f":"IF('Podaci o  kandidatu'!L9=\"\",\"\",'Podaci o  kandidatu'!L9)","v":""},{"$f":"IF('Podaci o  kandidatu'!M9=\"\",\"\",'Podaci o  kandidatu'!M9)","v":""}]
[{"$f":"IF('Podaci o  kandidatu'!A10=\"\",\"\",'Podaci o  kandidatu'!A10)","v":""},{"$f":"IF('Podaci o  kandidatu'!B10=\"\",\"\",'Podaci o  kandidatu'!B10)","v":""},{"$f":"IF('Podaci o  kandidatu'!C10=\"\",\"\",'Podaci o  kandidatu'!C10)","v":""},{"$f":"IF('Podaci o  kandidatu'!D10=\"\",\"\",'Podaci o  kandidatu'!D10)","v":""},{"$nulls":6},{"$f":"IF('Podaci o  kandidatu'!L10=\"\",\"\",'Podaci o  kandidatu'!L10)","v":""},{"$f":"IF('Podaci o  kandidatu'!M10=\"\",\"\",'Podaci o  kandidatu'!M10)","v":""}]
[{"$f":"IF('Podaci o  kandidatu'!A11=\"\",\"\",'Podaci o  kandidatu'!A11)","v":""},{"$f":"IF('Podaci o  kandidatu'!B11=\"\",\"\",'Podaci o  kandidatu'!B11)","v":""},{"$f":"IF('Podaci o  kandidatu'!C11=\"\",\"\",'Podaci o  kandidatu'!C11)","v":""},{"$f":"IF('Podaci o  kandidatu'!D11=\"\",\"\",'Podaci o  kandidatu'!D11)","v":""},{"$nulls":6},{"$f":"IF('Podaci o  kandidatu'!L11=\"\",\"\",'Podaci o  kandidatu'!L11)","v":""},{"$f":"IF('Podaci o  kandidatu'!M11=\"\",\"\",'Podaci o  kandidatu'!M11)","v":""}]
[{"$f":"IF('Podaci o  kandidatu'!A12=\"\",\"\",'Podaci o  kandidatu'!A12)","v":""},{"$f":"IF('Podaci o  kandidatu'!B12=\"\",\"\",'Podaci o  kandidatu'!B12)","v":""},{"$f":"IF('Podaci o  kandidatu'!C12=\"\",\"\",'Podaci o  kandidatu'!C12)","v":""},{"$f":"IF('Podaci o  kandidatu'!D12=\"\",\"\",'Podaci o  kandidatu'!D12)","v":""},{"$nulls":6},{"$f":"IF('Podaci o  kandidatu'!L12=\"\",\"\",'Podaci o  kandidatu'!L12)","v":""},{"$f":"IF('Podaci o  kandidatu'!M12=\"\",\"\",'Podaci o  kandidatu'!M12)","v":""}]
[{"$f":"IF('Podaci o  kandidatu'!A13=\"\",\"\",'Podaci o  kandidatu'!A13)","v":""},{"$f":"IF('Podaci o  kandidatu'!B13=\"\",\"\",'Podaci o  kandidatu'!B13)","v":""},{"$f":"IF('Podaci o  kandidatu'!C13=\"\",\"\",'Podaci o  kandidatu'!C13)","v":""},{"$f":"IF('Podaci o  kandidatu'!D13=\"\",\"\",'Podaci o  kandidatu'!D13)","v":""},{"$nulls":6},{"$f":"IF('Podaci o  kandidatu'!L13=\"\",\"\",'Podaci o  kandidatu'!L13)","v":""},{"$f":"IF('Podaci o  kandidatu'!M13=\"\",\"\",'Podaci o  kandidatu'!M13)","v":""}]
[{"$f":"IF('Podaci o  kandidatu'!A14=\"\",\"\",'Podaci o  kandidatu'!A14)","v":""},{"$f":"IF('Podaci o  kandidatu'!B14=\"\",\"\",'Podaci o  kandidatu'!B14)","v":""},{"$f":"IF('Podaci o  kandidatu'!C14=\"\",\"\",'Podaci o  kandidatu'!C14)","v":""},{"$f":"IF('Podaci o  kandidatu'!D14=\"\",\"\",'Podaci o  kandidatu'!D14)","v":""},{"$nulls":6},{"$f":"IF('Podaci o  kandidatu'!L14=\"\",\"\",'Podaci o  kandidatu'!L14)","v":""},{"$f":"IF('Podaci o  kandidatu'!M14=\"\",\"\",'Podaci o  kandidatu'!M14)","v":""}]
[{"$f":"IF('Podaci o  kandidatu'!A15=\"\",\"\",'Podaci o  kandidatu'!A15)","v":""},{"$f":"IF('Podaci o  kandidatu'!B15=\"\",\"\",'Podaci o  kandidatu'!B15)","v":""},{"$f":"IF('Podaci o  kandidatu'!C15=\"\",\"\",'Podaci o  kandidatu'!C15)","v":""},{"$f":"IF('Podaci o  kandidatu'!D15=\"\",\"\",'Podaci o  kandidatu'!D15)","v":""},{"$nulls":6},{"$f":"IF('Podaci o  kandidatu'!L15=\"\",\"\",'Podaci o  kandidatu'!L15)","v":""},{"$f":"IF('Podaci o  kandidatu'!M15=\"\",\"\",'Podaci o  kandidatu'!M15)","v":""}]
[{"$f":"IF('Podaci o  kandidatu'!A16=\"\",\"\",'Podaci o  kandidatu'!A16)","v":""},{"$f":"IF('Podaci o  kandidatu'!B16=\"\",\"\",'Podaci o  kandidatu'!B16)","v":""},{"$f":"IF('Podaci o  kandidatu'!C16=\"\",\"\",'Podaci o  kandidatu'!C16)","v":""},{"$f":"IF('Podaci o  kandidatu'!D16=\"\",\"\",'Podaci o  kandidatu'!D16)","v":""},{"$nulls":6},{"$f":"IF('Podaci o  kandidatu'!L16=\"\",\"\",'Podaci o  kandidatu'!L16)","v":""},{"$f":"IF('Podaci o  kandidatu'!M16=\"\",\"\",'Podaci o  kandidatu'!M16)","v":""}]
[{"$f":"IF('Podaci o  kandidatu'!A17=\"\",\"\",'Podaci o  kandidatu'!A17)","v":""},{"$f":"IF('Podaci o  kandidatu'!B17=\"\",\"\",'Podaci o  kandidatu'!B17)","v":""},{"$f":"IF('Podaci o  kandidatu'!C17=\"\",\"\",'Podaci o  kandidatu'!C17)","v":""},{"$f":"IF('Podaci o  kandidatu'!D17=\"\",\"\",'Podaci o  kandidatu'!D17)","v":""},{"$nulls":6},{"$f":"IF('Podaci o  kandidatu'!L17=\"\",\"\",'Podaci o  kandidatu'!L17)","v":""},{"$f":"IF('Podaci o  kandidatu'!M17=\"\",\"\",'Podaci o  kandidatu'!M17)","v":""}]
[{"$f":"IF('Podaci o  kandidatu'!A18=\"\",\"\",'Podaci o  kandidatu'!A18)","v":""},{"$f":"IF('Podaci o  kandidatu'!B18=\"\",\"\",'Podaci o  kandidatu'!B18)","v":""},{"$f":"IF('Podaci o  kandidatu'!C18=\"\",\"\",'Podaci o  kandidatu'!C18)","v":""},{"$f":"IF('Podaci o  kandidatu'!D18=\"\",\"\",'Podaci o  kandidatu'!D18)","v":""},{"$nulls":6},{"$f":"IF('Podaci o  kandidatu'!L18=\"\",\"\",'Podaci o  kandidatu'!L18)","v":""},{"$f":"IF('Podaci o  kandidatu'!M18=\"\",\"\",'Podaci o  kandidatu'!M18)","v":""}]
[{"$f":"IF('Podaci o  kandidatu'!A19=\"\",\"\",'Podaci o  kandidatu'!A19)","v":""},{"$f":"IF('Podaci o  kandidatu'!B19=\"\",\"\",'Podaci o  kandidatu'!B19)","v":""},{"$f":"IF('Podaci o  kandidatu'!C19=\"\",\"\",'Podaci o  kandidatu'!C19)","v":""},{"$f":"IF('Podaci o  kandidatu'!D19=\"\",\"\",'Podaci o  kandidatu'!D19)","v":""},{"$nulls":6},{"$f":"IF('Podaci o  kandidatu'!L19=\"\",\"\",'Podaci o  kandidatu'!L19)","v":""},{"$f":"IF('Podaci o  kandidatu'!M19=\"\",\"\",'Podaci o  kandidatu'!M19)","v":""}]
[{"$f":"IF('Podaci o  kandidatu'!A20=\"\",\"\",'Podaci o  kandidatu'!A20)","v":""},{"$f":"IF('Podaci o  kandidatu'!B20=\"\",\"\",'Podaci o  kandidatu'!B20)","v":""},{"$f":"IF('Podaci o  kandidatu'!C20=\"\",\"\",'Podaci o  kandidatu'!C20)","v":""},{"$f":"IF('Podaci o  kandidatu'!D20=\"\",\"\",'Podaci o  kandidatu'!D20)","v":""},{"$nulls":6},{"$f":"IF('Podaci o  kandidatu'!L20=\"\",\"\",'Podaci o  kandidatu'!L20)","v":""},{"$f":"IF('Podaci o  kandidatu'!M20=\"\",\"\",'Podaci o  kandidatu'!M20)","v":""}]
[{"$f":"IF('Podaci o  kandidatu'!A21=\"\",\"\",'Podaci o  kandidatu'!A21)","v":""},{"$f":"IF('Podaci o  kandidatu'!B21=\"\",\"\",'Podaci o  kandidatu'!B21)","v":""},{"$f":"IF('Podaci o  kandidatu'!C21=\"\",\"\",'Podaci o  kandidatu'!C21)","v":""},{"$f":"IF('Podaci o  kandidatu'!D21=\"\",\"\",'Podaci o  kandidatu'!D21)","v":""},{"$nulls":6},{"$f":"IF('Podaci o  kandidatu'!L21=\"\",\"\",'Podaci o  kandidatu'!L21)","v":""},{"$f":"IF('Podaci o  kandidatu'!M21=\"\",\"\",'Podaci o  kandidatu'!M21)","v":""}]
[{"$f":"IF('Podaci o  kandidatu'!A22=\"\",\"\",'Podaci o  kandidatu'!A22)","v":""},{"$f":"IF('Podaci o  kandidatu'!B22=\"\",\"\",'Podaci o  kandidatu'!B22)","v":""},{"$f":"IF('Podaci o  kandidatu'!C22=\"\",\"\",'Podaci o  kandidatu'!C22)","v":""},{"$f":"IF('Podaci o  kandidatu'!D22=\"\",\"\",'Podaci o  kandidatu'!D22)","v":""},{"$nulls":6},{"$f":"IF('Podaci o  kandidatu'!L22=\"\",\"\",'Podaci o  kandidatu'!L22)","v":""},{"$f":"IF('Podaci o  kandidatu'!M22=\"\",\"\",'Podaci o  kandidatu'!M22)","v":""}]
[{"$f":"IF('Podaci o  kandidatu'!A23=\"\",\"\",'Podaci o  kandidatu'!A23)","v":""},{"$f":"IF('Podaci o  kandidatu'!B23=\"\",\"\",'Podaci o  kandidatu'!B23)","v":""},{"$f":"IF('Podaci o  kandidatu'!C23=\"\",\"\",'Podaci o  kandidatu'!C23)","v":""},{"$f":"IF('Podaci o  kandidatu'!D23=\"\",\"\",'Podaci o  kandidatu'!D23)","v":""},{"$nulls":6},{"$f":"IF('Podaci o  kandidatu'!L23=\"\",\"\",'Podaci o  kandidatu'!L23)","v":""},{"$f":"IF('Podaci o  kandidatu'!M23=\"\",\"\",'Podaci o  kandidatu'!M23)","v":""}]
[{"$f":"IF('Podaci o  kandidatu'!A24=\"\",\"\",'Podaci o  kandidatu'!A24)","v":""},{"$f":"IF('Podaci o  kandidatu'!B24=\"\",\"\",'Podaci o  kandidatu'!B24)","v":""},{"$f":"IF('Podaci o  kandidatu'!C24=\"\",\"\",'Podaci o  kandidatu'!C24)","v":""},{"$f":"IF('Podaci o  kandidatu'!D24=\"\",\"\",'Podaci o  kandidatu'!D24)","v":""},{"$nulls":6},{"$f":"IF('Podaci o  kandidatu'!L24=\"\",\"\",'Podaci o  kandidatu'!L24)","v":""},{"$f":"IF('Podaci o  kandidatu'!M24=\"\",\"\",'Podaci o  kandidatu'!M24)","v":""}]
[{"$f":"IF('Podaci o  kandidatu'!A25=\"\",\"\",'Podaci o  kandidatu'!A25)","v":""},{"$f":"IF('Podaci o  kandidatu'!B25=\"\",\"\",'Podaci o  kandidatu'!B25)","v":""},{"$f":"IF('Podaci o  kandidatu'!C25=\"\",\"\",'Podaci o  kandidatu'!C25)","v":""},{"$f":"IF('Podaci o  kandidatu'!D25=\"\",\"\",'Podaci o  kandidatu'!D25)","v":""},{"$nulls":6},{"$f":"IF('Podaci o  kandidatu'!L25=\"\",\"\",'Podaci o  kandidatu'!L25)","v":""},{"$f":"IF('Podaci o  kandidatu'!M25=\"\",\"\",'Podaci o  kandidatu'!M25)","v":""}]
[{"$f":"IF('Podaci o  kandidatu'!A26=\"\",\"\",'Podaci o  kandidatu'!A26)","v":""},{"$f":"IF('Podaci o  kandidatu'!B26=\"\",\"\",'Podaci o  kandidatu'!B26)","v":""},{"$f":"IF('Podaci o  kandidatu'!C26=\"\",\"\",'Podaci o  kandidatu'!C26)","v":""},{"$f":"IF('Podaci o  kandidatu'!D26=\"\",\"\",'Podaci o  kandidatu'!D26)","v":""},{"$nulls":6},{"$f":"IF('Podaci o  kandidatu'!L26=\"\",\"\",'Podaci o  kandidatu'!L26)","v":""},{"$f":"IF('Podaci o  kandidatu'!M26=\"\",\"\",'Podaci o  kandidatu'!M26)","v":""}]
[{"$f":"IF('Podaci o  kandidatu'!A27=\"\",\"\",'Podaci o  kandidatu'!A27)","v":""},{"$f":"IF('Podaci o  kandidatu'!B27=\"\",\"\",'Podaci o  kandidatu'!B27)","v":""},{"$f":"IF('Podaci o  kandidatu'!C27=\"\",\"\",'Podaci o  kandidatu'!C27)","v":""},{"$f":"IF('Podaci o  kandidatu'!D27=\"\",\"\",'Podaci o  kandidatu'!D27)","v":""},{"$nulls":6},{"$f":"IF('Podaci o  kandidatu'!L27=\"\",\"\",'Podaci o  kandidatu'!L27)","v":""},{"$f":"IF('Podaci o  kandidatu'!M27=\"\",\"\",'Podaci o  kandidatu'!M27)","v":""}]
[{"$f":"IF('Podaci o  kandidatu'!A28=\"\",\"\",'Podaci o  kandidatu'!A28)","v":""},{"$f":"IF('Podaci o  kandidatu'!B28=\"\",\"\",'Podaci o  kandidatu'!B28)","v":""},{"$f":"IF('Podaci o  kandidatu'!C28=\"\",\"\",'Podaci o  kandidatu'!C28)","v":""},{"$f":"IF('Podaci o  kandidatu'!D28=\"\",\"\",'Podaci o  kandidatu'!D28)","v":""},{"$nulls":6},{"$f":"IF('Podaci o  kandidatu'!L28=\"\",\"\",'Podaci o  kandidatu'!L28)","v":""},{"$f":"IF('Podaci o  kandidatu'!M28=\"\",\"\",'Podaci o  kandidatu'!M28)","v":""}]
[{"$f":"IF('Podaci o  kandidatu'!A29=\"\",\"\",'Podaci o  kandidatu'!A29)","v":""},{"$f":"IF('Podaci o  kandidatu'!B29=\"\",\"\",'Podaci o  kandidatu'!B29)","v":""},{"$f":"IF('Podaci o  kandidatu'!C29=\"\",\"\",'Podaci o  kandidatu'!C29)","v":""},{"$f":"IF('Podaci o  kandidatu'!D29=\"\",\"\",'Podaci o  kandidatu'!D29)","v":""},{"$nulls":6},{"$f":"IF('Podaci o  kandidatu'!L29=\"\",\"\",'Podaci o  kandidatu'!L29)","v":""},{"$f":"IF('Podaci o  kandidatu'!M29=\"\",\"\",'Podaci o  kandidatu'!M29)","v":""}]
[{"$f":"IF('Podaci o  kandidatu'!A30=\"\",\"\",'Podaci o  kandidatu'!A30)","v":""},{"$f":"IF('Podaci o  kandidatu'!B30=\"\",\"\",'Podaci o  kandidatu'!B30)","v":""},{"$f":"IF('Podaci o  kandidatu'!C30=\"\",\"\",'Podaci o  kandidatu'!C30)","v":""},{"$f":"IF('Podaci o  kandidatu'!D30=\"\",\"\",'Podaci o  kandidatu'!D30)","v":""},{"$nulls":6},{"$f":"IF('Podaci o  kandidatu'!L30=\"\",\"\",'Podaci o  kandidatu'!L30)","v":""},{"$f":"IF('Podaci o  kandidatu'!M30=\"\",\"\",'Podaci o  kandidatu'!M30)","v":""}]
[{"$f":"IF('Podaci o  kandidatu'!A31=\"\",\"\",'Podaci o  kandidatu'!A31)","v":""},{"$f":"IF('Podaci o  kandidatu'!B31=\"\",\"\",'Podaci o  kandidatu'!B31)","v":""},{"$f":"IF('Podaci o  kandidatu'!C31=\"\",\"\",'Podaci o  kandidatu'!C31)","v":""},{"$f":"IF('Podaci o  kandidatu'!D31=\"\",\"\",'Podaci o  kandidatu'!D31)","v":""},{"$nulls":6},{"$f":"IF('Podaci o  kandidatu'!L31=\"\",\"\",'Podaci o  kandidatu'!L31)","v":""},{"$f":"IF('Podaci o  kandidatu'!M31=\"\",\"\",'Podaci o  kandidatu'!M31)","v":""}]
[{"$f":"IF('Podaci o  kandidatu'!A32=\"\",\"\",'Podaci o  kandidatu'!A32)","v":""},{"$f":"IF('Podaci o  kandidatu'!B32=\"\",\"\",'Podaci o  kandidatu'!B32)","v":""},{"$f":"IF('Podaci o  kandidatu'!C32=\"\",\"\",'Podaci o  kandidatu'!C32)","v":""},{"$f":"IF('Podaci o  kandidatu'!D32=\"\",\"\",'Podaci o  kandidatu'!D32)","v":""},{"$nulls":6},{"$f":"IF('Podaci o  kandidatu'!L32=\"\",\"\",'Podaci o  kandidatu'!L32)","v":""},{"$f":"IF('Podaci o  kandidatu'!M32=\"\",\"\",'Podaci o  kandidatu'!M32)","v":""}]
[{"$f":"IF('Podaci o  kandidatu'!A33=\"\",\"\",'Podaci o  kandidatu'!A33)","v":""},{"$f":"IF('Podaci o  kandidatu'!B33=\"\",\"\",'Podaci o  kandidatu'!B33)","v":""},{"$f":"IF('Podaci o  kandidatu'!C33=\"\",\"\",'Podaci o  kandidatu'!C33)","v":""},{"$f":"IF('Podaci o  kandidatu'!D33=\"\",\"\",'Podaci o  kandidatu'!D33)","v":""},{"$nulls":6},{"$f":"IF('Podaci o  kandidatu'!L33=\"\",\"\",'Podaci o  kandidatu'!L33)","v":""},{"$f":"IF('Podaci o  kandidatu'!M33=\"\",\"\",'Podaci o  kandidatu'!M33)","v":""}]
[{"$f":"IF('Podaci o  kandidatu'!A34=\"\",\"\",'Podaci o  kandidatu'!A34)","v":""},{"$f":"IF('Podaci o  kandidatu'!B34=\"\",\"\",'Podaci o  kandidatu'!B34)","v":""},{"$f":"IF('Podaci o  kandidatu'!C34=\"\",\"\",'Podaci o  kandidatu'!C34)","v":""},{"$f":"IF('Podaci o  kandidatu'!D34=\"\",\"\",'Podaci o  kandidatu'!D34)","v":""},{"$nulls":6},{"$f":"IF('Podaci o  kandidatu'!L34=\"\",\"\",'Podaci o  kandidatu'!L34)","v":""},{"$f":"IF('Podaci o  kandidatu'!M34=\"\",\"\",'Podaci o  kandidatu'!M34)","v":""}]
[{"$f":"IF('Podaci o  kandidatu'!A35=\"\",\"\",'Podaci o  kandidatu'!A35)","v":""},{"$f":"IF('Podaci o  kandidatu'!B35=\"\",\"\",'Podaci o  kandidatu'!B35)","v":""},{"$f":"IF('Podaci o  kandidatu'!C35=\"\",\"\",'Podaci o  kandidatu'!C35)","v":""},{"$f":"IF('Podaci o  kandidatu'!D35=\"\",\"\",'Podaci o  kandidatu'!D35)","v":""},{"$nulls":6},{"$f":"IF('Podaci o  kandidatu'!L35=\"\",\"\",'Podaci o  kandidatu'!L35)","v":""},{"$f":"IF('Podaci o  kandidatu'!M35=\"\",\"\",'Podaci o  kandidatu'!M35)","v":""}]
[{"$f":"IF('Podaci o  kandidatu'!A36=\"\",\"\",'Podaci o  kandidatu'!A36)","v":""},{"$f":"IF('Podaci o  kandidatu'!B36=\"\",\"\",'Podaci o  kandidatu'!B36)","v":""},{"$f":"IF('Podaci o  kandidatu'!C36=\"\",\"\",'Podaci o  kandidatu'!C36)","v":""},{"$f":"IF('Podaci o  kandidatu'!D36=\"\",\"\",'Podaci o  kandidatu'!D36)","v":""},{"$nulls":6},{"$f":"IF('Podaci o  kandidatu'!L36=\"\",\"\",'Podaci o  kandidatu'!L36)","v":""},{"$f":"IF('Podaci o  kandidatu'!M36=\"\",\"\",'Podaci o  kandidatu'!M36)","v":""}]
[{"$f":"IF('Podaci o  kandidatu'!A37=\"\",\"\",'Podaci o  kandidatu'!A37)","v":""},{"$f":"IF('Podaci o  kandidatu'!B37=\"\",\"\",'Podaci o  kandidatu'!B37)","v":""},{"$f":"IF('Podaci o  kandidatu'!C37=\"\",\"\",'Podaci o  kandidatu'!C37)","v":""},{"$f":"IF('Podaci o  kandidatu'!D37=\"\",\"\",'Podaci o  kandidatu'!D37)","v":""},{"$nulls":6},{"$f":"IF('Podaci o  kandidatu'!L37=\"\",\"\",'Podaci o  kandidatu'!L37)","v":""},{"$f":"IF('Podaci o  kandidatu'!M37=\"\",\"\",'Podaci o  kandidatu'!M37)","v":""}]
[{"$f":"IF('Podaci o  kandidatu'!A38=\"\",\"\",'Podaci o  kandidatu'!A38)","v":""},{"$f":"IF('Podaci o  kandidatu'!B38=\"\",\"\",'Podaci o  kandidatu'!B38)","v":""},{"$f":"IF('Podaci o  kandidatu'!C38=\"\",\"\",'Podaci o  kandidatu'!C38)","v":""},{"$f":"IF('Podaci o  kandidatu'!D38=\"\",\"\",'Podaci o  kandidatu'!D38)","v":""},{"$nulls":6},{"$f":"IF('Podaci o  kandidatu'!L38=\"\",\"\",'Podaci o  kandidatu'!L38)","v":""},{"$f":"IF('Podaci o  kandidatu'!M38=\"\",\"\",'Podaci o  kandidatu'!M38)","v":""}]
[{"$f":"IF('Podaci o  kandidatu'!A39=\"\",\"\",'Podaci o  kandidatu'!A39)","v":""},{"$f":"IF('Podaci o  kandidatu'!B39=\"\",\"\",'Podaci o  kandidatu'!B39)","v":""},{"$f":"IF('Podaci o  kandidatu'!C39=\"\",\"\",'Podaci o  kandidatu'!C39)","v":""},{"$f":"IF('Podaci o  kandidatu'!D39=\"\",\"\",'Podaci o  kandidatu'!D39)","v":""},{"$nulls":6},{"$f":"IF('Podaci o  kandidatu'!L39=\"\",\"\",'Podaci o  kandidatu'!L39)","v":""},{"$f":"IF('Podaci o  kandidatu'!M39=\"\",\"\",'Podaci o  kandidatu'!M39)","v":""}]
[{"$f":"IF('Podaci o  kandidatu'!A40=\"\",\"\",'Podaci o  kandidatu'!A40)","v":""},{"$f":"IF('Podaci o  kandidatu'!B40=\"\",\"\",'Podaci o  kandidatu'!B40)","v":""},{"$f":"IF('Podaci o  kandidatu'!C40=\"\",\"\",'Podaci o  kandidatu'!C40)","v":""},{"$f":"IF('Podaci o  kandidatu'!D40=\"\",\"\",'Podaci o  kandidatu'!D40)","v":""},{"$nulls":6},{"$f":"IF('Podaci o  kandidatu'!L40=\"\",\"\",'Podaci o  kandidatu'!L40)","v":""},{"$f":"IF('Podaci o  kandidatu'!M40=\"\",\"\",'Podaci o  kandidatu'!M40)","v":""}]
[{"$f":"IF('Podaci o  kandidatu'!A41=\"\",\"\",'Podaci o  kandidatu'!A41)","v":""},{"$f":"IF('Podaci o  kandidatu'!B41=\"\",\"\",'Podaci o  kandidatu'!B41)","v":""},{"$f":"IF('Podaci o  kandidatu'!C41=\"\",\"\",'Podaci o  kandidatu'!C41)","v":""},{"$f":"IF('Podaci o  kandidatu'!D41=\"\",\"\",'Podaci o  kandidatu'!D41)","v":""},{"$nulls":6},{"$f":"IF('Podaci o  kandidatu'!L41=\"\",\"\",'Podaci o  kandidatu'!L41)","v":""},{"$f":"IF('Podaci o  kandidatu'!M41=\"\",\"\",'Podaci o  kandidatu'!M41)","v":""}]
[{"$f":"IF('Podaci o  kandidatu'!A42=\"\",\"\",'Podaci o  kandidatu'!A42)","v":""},{"$f":"IF('Podaci o  kandidatu'!B42=\"\",\"\",'Podaci o  kandidatu'!B42)","v":""},{"$f":"IF('Podaci o  kandidatu'!C42=\"\",\"\",'Podaci o  kandidatu'!C42)","v":""},{"$f":"IF('Podaci o  kandidatu'!D42=\"\",\"\",'Podaci o  kandidatu'!D42)","v":""},{"$nulls":6},{"$f":"IF('Podaci o  kandidatu'!L42=\"\",\"\",'Podaci o  kandidatu'!L42)","v":""},{"$f":"IF('Podaci o  kandidatu'!M42=\"\",\"\",'Podaci o  kandidatu'!M42)","v":""}]
[{"$f":"IF('Podaci o  kandidatu'!A43=\"\",\"\",'Podaci o  kandidatu'!A43)","v":""},{"$f":"IF('Podaci o  kandidatu'!B43=\"\",\"\",'Podaci o  kandidatu'!B43)","v":""},{"$f":"IF('Podaci o  kandidatu'!C43=\"\",\"\",'Podaci o  kandidatu'!C43)","v":""},{"$f":"IF('Podaci o  kandidatu'!D43=\"\",\"\",'Podaci o  kandidatu'!D43)","v":""},{"$nulls":6},{"$f":"IF('Podaci o  kandidatu'!L43=\"\",\"\",'Podaci o  kandidatu'!L43)","v":""},{"$f":"IF('Podaci o  kandidatu'!M43=\"\",\"\",'Podaci o  kandidatu'!M43)","v":""}]
[{"$f":"IF('Podaci o  kandidatu'!A44=\"\",\"\",'Podaci o  kandidatu'!A44)","v":""},{"$f":"IF('Podaci o  kandidatu'!B44=\"\",\"\",'Podaci o  kandidatu'!B44)","v":""},{"$f":"IF('Podaci o  kandidatu'!C44=\"\",\"\",'Podaci o  kandidatu'!C44)","v":""},{"$f":"IF('Podaci o  kandidatu'!D44=\"\",\"\",'Podaci o  kandidatu'!D44)","v":""},{"$nulls":6},{"$f":"IF('Podaci o  kandidatu'!L44=\"\",\"\",'Podaci o  kandidatu'!L44)","v":""},{"$f":"IF('Podaci o  kandidatu'!M44=\"\",\"\",'Podaci o  kandidatu'!M44)","v":""}]
[{"$f":"IF('Podaci o  kandidatu'!A45=\"\",\"\",'Podaci o  kandidatu'!A45)","v":""},{"$f":"IF('Podaci o  kandidatu'!B45=\"\",\"\",'Podaci o  kandidatu'!B45)","v":""},{"$f":"IF('Podaci o  kandidatu'!C45=\"\",\"\",'Podaci o  kandidatu'!C45)","v":""},{"$f":"IF('Podaci o  kandidatu'!D45=\"\",\"\",'Podaci o  kandidatu'!D45)","v":""},{"$nulls":6},{"$f":"IF('Podaci o  kandidatu'!L45=\"\",\"\",'Podaci o  kandidatu'!L45)","v":""},{"$f":"IF('Podaci o  kandidatu'!M45=\"\",\"\",'Podaci o  kandidatu'!M45)","v":""}]
[{"$f":"IF('Podaci o  kandidatu'!A46=\"\",\"\",'Podaci o  kandidatu'!A46)","v":""},{"$f":"IF('Podaci o  kandidatu'!B46=\"\",\"\",'Podaci o  kandidatu'!B46)","v":""},{"$f":"IF('Podaci o  kandidatu'!C46=\"\",\"\",'Podaci o  kandidatu'!C46)","v":""},{"$f":"IF('Podaci o  kandidatu'!D46=\"\",\"\",'Podaci o  kandidatu'!D46)","v":""},{"$nulls":6},{"$f":"IF('Podaci o  kandidatu'!L46=\"\",\"\",'Podaci o  kandidatu'!L46)","v":""},{"$f":"IF('Podaci o  kandidatu'!M46=\"\",\"\",'Podaci o  kandidatu'!M46)","v":""}]
[{"$f":"IF('Podaci o  kandidatu'!A47=\"\",\"\",'Podaci o  kandidatu'!A47)","v":""},{"$f":"IF('Podaci o  kandidatu'!B47=\"\",\"\",'Podaci o  kandidatu'!B47)","v":""},{"$f":"IF('Podaci o  kandidatu'!C47=\"\",\"\",'Podaci o  kandidatu'!C47)","v":""},{"$f":"IF('Podaci o  kandidatu'!D47=\"\",\"\",'Podaci o  kandidatu'!D47)","v":""},{"$nulls":6},{"$f":"IF('Podaci o  kandidatu'!L47=\"\",\"\",'Podaci o  kandidatu'!L47)","v":""},{"$f":"IF('Podaci o  kandidatu'!M47=\"\",\"\",'Podaci o  kandidatu'!M47)","v":""}]
[{"$f":"IF('Podaci o  kandidatu'!A48=\"\",\"\",'Podaci o  kandidatu'!A48)","v":""},{"$f":"IF('Podaci o  kandidatu'!B48=\"\",\"\",'Podaci o  kandidatu'!B48)","v":""},{"$f":"IF('Podaci o  kandidatu'!C48=\"\",\"\",'Podaci o  kandidatu'!C48)","v":""},{"$f":"IF('Podaci o  kandidatu'!D48=\"\",\"\",'Podaci o  kandidatu'!D48)","v":""},{"$nulls":6},{"$f":"IF('Podaci o  kandidatu'!L48=\"\",\"\",'Podaci o  kandidatu'!L48)","v":""},{"$f":"IF('Podaci o  kandidatu'!M48=\"\",\"\",'Podaci o  kandidatu'!M48)","v":""}]
[{"$f":"IF('Podaci o  kandidatu'!A49=\"\",\"\",'Podaci o  kandidatu'!A49)","v":""},{"$f":"IF('Podaci o  kandidatu'!B49=\"\",\"\",'Podaci o  kandidatu'!B49)","v":""},{"$f":"IF('Podaci o  kandidatu'!C49=\"\",\"\",'Podaci o  kandidatu'!C49)","v":""},{"$f":"IF('Podaci o  kandidatu'!D49=\"\",\"\",'Podaci o  kandidatu'!D49)","v":""},{"$nulls":6},{"$f":"IF('Podaci o  kandidatu'!L49=\"\",\"\",'Podaci o  kandidatu'!L49)","v":""},{"$f":"IF('Podaci o  kandidatu'!M49=\"\",\"\",'Podaci o  kandidatu'!M49)","v":""}]
[{"$f":"IF('Podaci o  kandidatu'!A50=\"\",\"\",'Podaci o  kandidatu'!A50)","v":""},{"$f":"IF('Podaci o  kandidatu'!B50=\"\",\"\",'Podaci o  kandidatu'!B50)","v":""},{"$f":"IF('Podaci o  kandidatu'!C50=\"\",\"\",'Podaci o  kandidatu'!C50)","v":""},{"$f":"IF('Podaci o  kandidatu'!D50=\"\",\"\",'Podaci o  kandidatu'!D50)","v":""},{"$nulls":6},{"$f":"IF('Podaci o  kandidatu'!L50=\"\",\"\",'Podaci o  kandidatu'!L50)","v":""},{"$f":"IF('Podaci o  kandidatu'!M50=\"\",\"\",'Podaci o  kandidatu'!M50)","v":""}]
[{"$f":"IF('Podaci o  kandidatu'!A51=\"\",\"\",'Podaci o  kandidatu'!A51)","v":""},{"$f":"IF('Podaci o  kandidatu'!B51=\"\",\"\",'Podaci o  kandidatu'!B51)","v":""},{"$f":"IF('Podaci o  kandidatu'!C51=\"\",\"\",'Podaci o  kandidatu'!C51)","v":""},{"$f":"IF('Podaci o  kandidatu'!D51=\"\",\"\",'Podaci o  kandidatu'!D51)","v":""},{"$nulls":6},{"$f":"IF('Podaci o  kandidatu'!L51=\"\",\"\",'Podaci o  kandidatu'!L51)","v":""},{"$f":"IF('Podaci o  kandidatu'!M51=\"\",\"\",'Podaci o  kandidatu'!M51)","v":""}]
[{"$f":"IF('Podaci o  kandidatu'!A52=\"\",\"\",'Podaci o  kandidatu'!A52)","v":""},{"$f":"IF('Podaci o  kandidatu'!B52=\"\",\"\",'Podaci o  kandidatu'!B52)","v":""},{"$f":"IF('Podaci o  kandidatu'!C52=\"\",\"\",'Podaci o  kandidatu'!C52)","v":""},{"$f":"IF('Podaci o  kandidatu'!D52=\"\",\"\",'Podaci o  kandidatu'!D52)","v":""},{"$nulls":6},{"$f":"IF('Podaci o  kandidatu'!L52=\"\",\"\",'Podaci o  kandidatu'!L52)","v":""},{"$f":"IF('Podaci o  kandidatu'!M52=\"\",\"\",'Podaci o  kandidatu'!M52)","v":""}]
[{"$f":"IF('Podaci o  kandidatu'!A53=\"\",\"\",'Podaci o  kandidatu'!A53)","v":""},{"$f":"IF('Podaci o  kandidatu'!B53=\"\",\"\",'Podaci o  kandidatu'!B53)","v":""},{"$f":"IF('Podaci o  kandidatu'!C53=\"\",\"\",'Podaci o  kandidatu'!C53)","v":""},{"$f":"IF('Podaci o  kandidatu'!D53=\"\",\"\",'Podaci o  kandidatu'!D53)","v":""},{"$nulls":6},{"$f":"IF('Podaci o  kandidatu'!L53=\"\",\"\",'Podaci o  kandidatu'!L53)","v":""},{"$f":"IF('Podaci o  kandidatu'!M53=\"\",\"\",'Podaci o  kandidatu'!M53)","v":""}]
[{"$f":"IF('Podaci o  kandidatu'!A54=\"\",\"\",'Podaci o  kandidatu'!A54)","v":""},{"$f":"IF('Podaci o  kandidatu'!B54=\"\",\"\",'Podaci o  kandidatu'!B54)","v":""},{"$f":"IF('Podaci o  kandidatu'!C54=\"\",\"\",'Podaci o  kandidatu'!C54)","v":""},{"$f":"IF('Podaci o  kandidatu'!D54=\"\",\"\",'Podaci o  kandidatu'!D54)","v":""},{"$nulls":6},{"$f":"IF('Podaci o  kandidatu'!L54=\"\",\"\",'Podaci o  kandidatu'!L54)","v":""},{"$f":"IF('Podaci o  kandidatu'!M54=\"\",\"\",'Podaci o  kandidatu'!M54)","v":""}]
[{"$f":"IF('Podaci o  kandidatu'!A55=\"\",\"\",'Podaci o  kandidatu'!A55)","v":""},{"$f":"IF('Podaci o  kandidatu'!B55=\"\",\"\",'Podaci o  kandidatu'!B55)","v":""},{"$f":"IF('Podaci o  kandidatu'!C55=\"\",\"\",'Podaci o  kandidatu'!C55)","v":""},{"$f":"IF('Podaci o  kandidatu'!D55=\"\",\"\",'Podaci o  kandidatu'!D55)","v":""},{"$nulls":6},{"$f":"IF('Podaci o  kandidatu'!L55=\"\",\"\",'Podaci o  kandidatu'!L55)","v":""},{"$f":"IF('Podaci o  kandidatu'!M55=\"\",\"\",'Podaci o  kandidatu'!M55)","v":""}]
[{"$f":"IF('Podaci o  kandidatu'!A56=\"\",\"\",'Podaci o  kandidatu'!A56)","v":""},{"$f":"IF('Podaci o  kandidatu'!B56=\"\",\"\",'Podaci o  kandidatu'!B56)","v":""},{"$f":"IF('Podaci o  kandidatu'!C56=\"\",\"\",'Podaci o  kandidatu'!C56)","v":""},{"$f":"IF('Podaci o  kandidatu'!D56=\"\",\"\",'Podaci o  kandidatu'!D56)","v":""},{"$nulls":6},{"$f":"IF('Podaci o  kandidatu'!L56=\"\",\"\",'Podaci o  kandidatu'!L56)","v":""},{"$f":"IF('Podaci o  kandidatu'!M56=\"\",\"\",'Podaci o  kandidatu'!M56)","v":""}]
[{"$f":"IF('Podaci o  kandidatu'!A57=\"\",\"\",'Podaci o  kandidatu'!A57)","v":""},{"$f":"IF('Podaci o  kandidatu'!B57=\"\",\"\",'Podaci o  kandidatu'!B57)","v":""},{"$f":"IF('Podaci o  kandidatu'!C57=\"\",\"\",'Podaci o  kandidatu'!C57)","v":""},{"$f":"IF('Podaci o  kandidatu'!D57=\"\",\"\",'Podaci o  kandidatu'!D57)","v":""},{"$nulls":6},{"$f":"IF('Podaci o  kandidatu'!L57=\"\",\"\",'Podaci o  kandidatu'!L57)","v":""},{"$f":"IF('Podaci o  kandidatu'!M57=\"\",\"\",'Podaci o  kandidatu'!M57)","v":""}]
[{"$f":"IF('Podaci o  kandidatu'!A58=\"\",\"\",'Podaci o  kandidatu'!A58)","v":""},{"$f":"IF('Podaci o  kandidatu'!B58=\"\",\"\",'Podaci o  kandidatu'!B58)","v":""},{"$f":"IF('Podaci o  kandidatu'!C58=\"\",\"\",'Podaci o  kandidatu'!C58)","v":""},{"$f":"IF('Podaci o  kandidatu'!D58=\"\",\"\",'Podaci o  kandidatu'!D58)","v":""},{"$nulls":6},{"$f":"IF('Podaci o  kandidatu'!L58=\"\",\"\",'Podaci o  kandidatu'!L58)","v":""},{"$f":"IF('Podaci o  kandidatu'!M58=\"\",\"\",'Podaci o  kandidatu'!M58)","v":""}]
[{"$f":"IF('Podaci o  kandidatu'!A59=\"\",\"\",'Podaci o  kandidatu'!A59)","v":""},{"$f":"IF('Podaci o  kandidatu'!B59=\"\",\"\",'Podaci o  kandidatu'!B59)","v":""},{"$f":"IF('Podaci o  kandidatu'!C59=\"\",\"\",'Podaci o  kandidatu'!C59)","v":""},{"$f":"IF('Podaci o  kandidatu'!D59=\"\",\"\",'Podaci o  kandidatu'!D59)","v":""},{"$nulls":6},{"$f":"IF('Podaci o  kandidatu'!L59=\"\",\"\",'Podaci o  kandidatu'!L59)","v":""},{"$f":"IF('Podaci o  kandidatu'!M59=\"\",\"\",'Podaci o  kandidatu'!M59)","v":""}]